bitfinex/quotes_ETHUSD_20241123
["timestamp","ask_amount","ask_price","bid_price","bid_amount"]
[1732346634738,0.8139,3335.1,3334.9,0.32613461]
[1732346637467,0.8139,3335.1,3334.9,0.02813461]
[1732346637768,0.8139,3335.1,3334.6,0.298]
[1732346637994,0.8139,3335.1,3334.7,0.02838965]
[1732346638392,0.5158,3335.1,3334.7,0.02838965]
[1732346638599,0.2177,3335.1,3334.8,0.02745404]
[1732346638766,0.2177,3335.1,3334.6,0.298]
[1732346638963,0.2177,3335.1,3334.7,0.02748628]
[1732346643101,0.8326,3335.0,3334.5,0.298]
[1732346643591,0.8326,3335.0,3334.6,0.02747557]
[1732346644133,0.03748602,3334.9,3334.2,0.298]
[1732346644294,0.8326,3335.0,3334.3,0.02761976]
[1732346644795,0.03748601,3334.9,3334.3,0.02761976]
[1732346644996,0.8326,3334.8,3334.3,0.02761976]
[1732346645197,0.8326,3334.8,3334.1,0.298]
[1732346645433,0.8326,3334.8,3334.2,0.02771644]
[1732346647161,0.8326,3334.8,3334.1,0.67779072]
[1732346647426,0.8326,3334.8,3334.2,0.32479256]
[1732346648139,0.8426,3334.8,3334.2,0.32479256]
[1732346648300,0.53368878,3334.7,3334.2,0.32479256]
[1732346648494,0.01,3334.8,3334.2,0.32479256]
[1732346649327,0.02,3335.0,3334.3,0.298]
[1732346649530,0.01,3335.0,3334.3,0.69890911]
[1732346649705,0.01,3335.0,3334.5,0.298]
[1732346650123,0.01,3335.0,3334.6,0.0285451]
[1732346651118,0.01,3335.0,3334.4,0.298]
[1732346651325,0.7943,3334.9,3334.7,0.02852206]
[1732346651494,0.7943,3334.9,3334.4,0.298]
[1732346652103,0.7943,3334.9,3334.2,0.298]
[1732346653971,0.7943,3334.9,3334.2,1.03254172]
[1732346654170,0.7943,3334.9,3334.2,0.298]
[1732346654478,0.03711608,3334.8,3334.2,0.298]
[1732346654677,0.03711608,3334.8,3333.7,0.298]
[1732346654832,0.03711608,3334.8,3334.2,0.298]
[1732346655862,0.03711608,3334.8,3334.0,0.298]
[1732346656893,0.7943,3334.9,3334.0,0.66550002]
[1732346657087,0.7943,3334.9,3334.4,0.298]
[1732346657395,0.8157,3335.3,3334.4,0.66550002]
[1732346657967,0.8157,3335.3,3334.6,0.298]
[1732346659055,0.03711608,3335.2,3334.5,0.298]
[1732346659356,0.03711608,3335.2,3334.7,0.298]
[1732346660284,0.03711608,3335.2,3334.4,0.298]
[1732346662781,0.03711608,3335.2,3334.5,0.5497]
[1732346662987,0.03711608,3335.2,3334.6,0.298]
[1732346663805,0.03711608,3335.2,3334.4,0.298]
[1732346667813,0.03711608,3335.2,3334.6,0.298]
[1732346668674,0.55471608,3335.3,3334.5,0.55]
[1732346668875,0.55471608,3335.3,3334.8,0.298]
[1732346669195,0.55471608,3335.3,3334.7,0.55]
[1732346669196,0.55471608,3335.3,3335.0,0.298]
[1732346670398,0.55471608,3335.3,3334.8,0.298]
[1732346670669,0.55471608,3335.3,3335.0,0.298]
[1732346671689,0.55471608,3335.3,3334.8,0.298]
[1732346671895,0.55471608,3335.3,3335.0,0.298]
[1732346673027,0.55471608,3335.3,3334.6,0.298]
[1732346673183,0.55471608,3335.3,3334.8,0.298]
[1732346673517,0.8323,3335.7,3335.0,0.298]
[1732346673725,0.8323,3335.7,3335.4,0.298]
[1732346674494,0.8323,3336.0,3335.4,1.1203]
[1732346676124,0.8323,3336.0,3335.4,1.87088459]
[1732346676627,1.75,3336.2,3335.4,1.87088459]
[1732346677139,1.75,3336.2,3335.5,0.298]
[1732346677696,1.75,3336.2,3335.7,0.298]
[1732346678533,0.01,3336.1,3335.7,0.298]
[1732346678739,1.4619,3336.2,3335.9,0.298]
[1732346691772,1.4619,3336.2,3335.8,0.298]
[1732346692147,1.4619,3336.2,3335.6,0.298]
[1732346692345,1.69232,3336.2,3335.6,0.298]
[1732346694252,1.4619,3336.2,3335.8,0.298]
[1732346694574,1.4619,3336.2,3336.0,0.298]
[1732346695444,1.4619,3336.2,3335.8,0.298]
[1732346696273,1.4619,3336.2,3336.0,0.298]
[1732346696460,1.4619,3336.2,3336.1,0.848]
[1732346698680,1.1638,3336.2,3336.1,0.55]
[1732346698840,1.1638,3336.2,3336.1,1.04245626]
[1732346699176,1.1638,3336.2,3336.1,0.298]
[1732346699383,1.1638,3336.2,3336.1,1.05087957]
[1732346699675,1.1638,3336.2,3336.1,0.298]
[1732346699976,1.1638,3336.2,3336.0,0.298]
[1732346701189,1.1638,3336.2,3336.1,0.848]
[1732346701746,1.1638,3336.2,3336.1,0.298]
[1732346701982,1.9706,3336.2,3335.9,0.298]
[1732346702558,1.9706,3336.2,3335.6,1.53736458]
[1732346702748,1.9706,3336.2,3335.7,0.298]
[1732346705788,1.1638,3336.2,3335.7,0.298]
[1732346706594,1.1638,3336.2,3335.3,0.298]
[1732346706887,1.1638,3336.2,3335.4,0.02997458]
[1732346707893,1.1638,3336.2,3335.5,0.298]
[1732346708761,0.8657,3336.2,3335.5,0.298]
[1732346708959,0.8657,3336.2,3335.4,0.28167458]
[1732346709291,0.8657,3336.2,3335.2,0.32761303]
[1732346709596,0.5676,3336.2,3335.3,0.7451]
[1732346709801,0.7557,3336.5,3335.4,0.7451]
[1732346710291,0.7557,3336.5,3335.5,0.7451]
[1732346711900,0.7557,3336.5,3335.7,0.7451]
[1732346712801,0.7557,3336.5,3335.8,0.55]
[1732346713108,0.7557,3336.5,3335.7,0.7451]
[1732346713396,0.7557,3336.5,3336.0,0.298]
[1732346713899,0.7557,3337.0,3336.0,0.298]
[1732346714195,0.7557,3337.0,3336.2,0.298]
[1732346717775,0.01,3337.1,3335.5,0.298]
[1732346717776,0.8113,3336.8,3335.5,0.298]
[1732346717979,0.8113,3336.8,3335.7,0.298]
[1732346720281,0.8113,3336.8,3335.9,0.298]
[1732346720482,0.8113,3336.8,3336.1,0.298]
[1732346721573,0.8113,3336.8,3335.7,0.298]
[1732346721969,0.8113,3336.8,3335.6,0.5497]
[1732346722169,0.8113,3336.8,3335.7,0.298]
[1732346722611,0.8113,3336.8,3335.4,0.298]
[1732346724773,0.8113,3336.8,3335.6,0.298]
[1732346728744,0.8113,3336.8,3335.8,0.298]
[1732346729046,0.5132,3336.8,3335.8,0.298]
[1732346730265,0.5132,3336.8,3336.2,0.298]
[1732346733026,0.8044,3337.2,3336.0,0.298]
[1732346733225,0.8044,3337.0,3336.0,1.04902242]
[1732346733561,0.01,3337.3,3336.0,1.04902242]
[1732346734325,0.01,3337.3,3336.2,0.298]
[1732346735471,0.01,3337.3,3336.0,0.75102242]
[1732346735472,0.01,3337.3,3336.1,0.298]
[1732346735976,0.01,3337.3,3336.3,0.298]
[1732346736536,0.8044,3337.2,3336.3,0.298]
[1732346736779,0.03745949,3337.1,3335.9,0.298]
[1732346737075,0.8044,3337.2,3335.5,0.55]
[1732346737250,0.8044,3337.2,3335.9,0.298]
[1732346737454,0.56990001,3337.2,3336.1,0.298]
[1732346737841,0.01,3337.5,3336.1,0.298]
[1732346738473,0.04745721,3337.5,3336.1,0.298]
[1732346738982,1.49935749,3337.8,3336.2,0.02996599]
[1732346739186,0.23037575,3337.7,3336.3,0.298]
[1732346739483,0.25286896,3337.7,3336.5,0.298]
[1732346739678,0.25566265,3337.6,3336.7,0.298]
[1732346739883,0.02249321,3337.5,3336.7,0.298]
[1732346740085,0.25566265,3337.6,3336.7,0.298]
[1732346740086,0.02249321,3337.6,3336.7,0.298]
[1732346740288,0.02249321,3337.6,3336.9,0.298]
[1732346740602,1.49935749,3337.8,3336.9,0.298]
[1732346740888,0.8055,3337.7,3336.9,0.298]
[1732346741378,0.8055,3337.7,3336.8,0.298]
[1732346741542,0.8055,3337.7,3336.8,0.4616]
[1732346741744,0.8055,3337.7,3337.0,0.298]
[1732346742554,0.8041,3337.2,3335.7,0.75936651]
[1732346742763,0.83406365,3337.1,3333.9,0.01]
[1732346743089,0.83406365,3337.1,3334.0,0.01500795]
[1732346743497,0.83406365,3337.1,3334.0,0.31300795]
[1732346743985,0.83406365,3337.1,3334.4,0.298]
[1732346744158,0.83406365,3337.1,3334.6,0.298]
[1732346744346,0.83406365,3337.1,3334.8,0.298]
[1732346744860,0.8041,3336.9,3336.7,0.298]
[1732346745063,1.28407249,3336.8,3336.7,0.298]
[1732346745360,1.12025612,3336.8,3336.7,0.298]
[1732346745674,0.8041,3336.7,3334.8,0.298]
[1732346745871,0.01,3337.3,3335.0,0.298]
[1732346745872,0.8041,3336.5,3335.0,0.298]
[1732346746081,1.12025857,3336.4,3335.0,0.298]
[1732346746276,0.8041,3336.3,3335.0,0.47979118]
[1732346746501,0.8041,3336.1,3335.0,0.47979118]
[1732346746654,0.84157522,3336.0,3335.0,0.298]
[1732346747555,0.8041,3336.0,3335.0,0.298]
[1732346747892,0.8041,3336.0,3334.7,1.51991176]
[1732346747893,0.8041,3336.0,3335.1,0.298]
[1732346748881,0.8041,3336.0,3334.9,0.298]
[1732346749060,0.8041,3336.0,3335.1,0.298]
[1732346749455,0.2395779,3336.0,3335.1,0.298]
[1732346749683,0.03747521,3337.3,3336.6,0.298]
[1732346749902,0.27819091,3337.2,3336.6,3.298]
[1732346750224,0.03746669,3337.1,3336.6,3.298]
[1732346750356,0.27819091,3337.0,3336.6,3.0]
[1732346750561,0.03746668,3336.9,3336.6,3.0]
[1732346750789,0.27819091,3336.8,3336.6,3.0]
[1732346750983,0.27819091,3336.8,3335.1,0.01498891]
[1732346751187,0.03747315,3336.7,3336.6,3.0]
[1732346751386,0.04746819,3337.4,3335.0,0.31300239]
[1732346751558,0.27813879,3337.3,3336.6,3.0]
[1732346751760,0.31560697,3337.2,3336.6,3.0]
[1732346752080,0.27813879,3337.1,3336.7,0.298]
[1732346752279,0.03746799,3337.0,3336.7,0.298]
[1732346752488,0.27813879,3336.9,3335.0,0.298]
[1732346752676,0.03747309,3336.8,3335.0,0.298]
[1732346752884,0.8088,3336.7,3335.0,0.31300284]
[1732346753097,0.8088,3336.5,3335.2,0.298]
[1732346753260,0.8088,3336.3,3335.2,0.298]
[1732346754214,0.8088,3336.3,3335.0,0.31300284]
[1732346755404,0.0574731,3337.4,3335.0,0.298]
[1732346755405,0.84627311,3336.2,3335.0,0.298]
[1732346755611,0.8088,3336.2,3334.8,0.298]
[1732346756309,0.8088,3336.2,3335.0,0.298]
[1732346757507,0.8088,3336.2,3334.7,1.42026725]
[1732346757508,0.8088,3336.2,3334.8,0.298]
[1732346757801,0.5107,3336.2,3334.8,0.298]
[1732346758113,0.5107,3336.2,3335.0,0.298]
[1732346759704,0.5107,3336.2,3335.2,0.298]
[1732346760408,0.5107,3336.2,3335.4,0.298]
[1732346761308,0.5107,3336.2,3335.0,0.298]
[1732346761739,0.5107,3336.2,3335.4,0.298]
[1732346762104,0.7675,3337.3,3335.4,0.298]
[1732346762296,1.08306526,3337.2,3335.4,0.298]
[1732346762493,0.7675,3337.0,3335.4,0.298]
[1732346762748,0.7675,3336.8,3335.4,0.298]
[1732346763032,0.7675,3336.6,3334.8,0.298]
[1732346763337,0.7675,3336.4,3335.0,0.848]
[1732346763501,0.03747308,3336.3,3335.0,0.848]
[1732346763699,0.7675,3337.2,3335.0,0.848]
[1732346763900,0.7675,3337.0,3335.0,0.848]
[1732346764129,0.7675,3336.8,3335.0,0.848]
[1732346764300,0.7675,3336.6,3335.0,0.848]
[1732346764499,0.80497307,3336.5,3335.0,0.848]
[1732346765131,0.7675,3336.5,3335.0,0.848]
[1732346765521,0.03747094,3336.4,3335.0,0.848]
[1732346765696,0.7675,3336.3,3335.0,0.848]
[1732346767137,0.7675,3336.3,3334.9,0.298]
[1732346767435,0.7675,3336.3,3335.1,0.298]
[1732346767623,0.4694,3336.3,3335.1,0.298]
[1732346767823,0.4694,3336.3,3334.9,0.7579]
[1732346768141,0.4694,3336.3,3335.0,0.298]
[1732346768309,0.4694,3336.3,3335.2,0.298]
[1732346768713,0.03747094,3337.4,3335.2,0.298]
[1732346768957,0.2783477,3337.3,3336.7,0.298]
[1732346769158,0.31581324,3337.3,3336.7,0.298]
[1732346769316,0.31581324,3337.3,3335.3,0.7579]
[1732346769317,0.037463,3337.2,3337.1,0.298]
[1732346769517,0.03746056,3337.7,3337.1,0.298]
[1732346769749,0.43206526,3337.6,3337.1,0.298]
[1732346769951,0.31584558,3337.5,3337.1,0.298]
[1732346770111,0.27838345,3337.4,3337.1,0.298]
[1732346770317,0.03746217,3337.3,3336.0,0.298]
[1732346770515,0.03746258,3337.5,3336.2,0.298]
[1732346770717,0.27844759,3337.4,3336.4,0.298]
[1732346771251,0.03746258,3337.5,3336.4,0.298]
[1732346771436,0.27855608,3337.4,3336.4,0.298]
[1732346771645,0.27855608,3337.4,3337.1,0.298]
[1732346771951,0.7675,3337.4,3337.1,0.298]
[1732346772117,0.8082,3337.2,3337.1,0.298]
[1732346773548,0.8082,3337.2,3336.0,0.298]
[1732346773760,0.8082,3337.2,3336.2,0.298]
[1732346774133,0.8082,3337.2,3336.4,0.298]
[1732346774726,0.8082,3337.0,3336.4,0.298]
[1732346774960,0.03746259,3336.9,3336.4,0.298]
[1732346775563,0.03746259,3336.9,3336.2,0.298]
[1732346775741,0.03746259,3336.9,3336.4,0.298]
[1732346775929,0.15368181,3337.6,3336.4,0.298]
[1732346776128,0.27855635,3337.5,3337.1,0.298]
[1732346776329,0.47171592,3337.5,3337.1,0.298]
[1732346776526,0.19315957,3337.5,3337.1,0.298]
[1732346776941,0.03746208,3337.4,3337.1,0.298]
[1732346777571,0.19315957,3337.5,3336.0,0.32797006]
[1732346777744,0.03746186,3337.4,3336.0,0.32797006]
[1732346777954,0.03746186,3337.4,3336.2,0.298]
[1732346778644,0.03746186,3337.4,3335.9,1.49299682]
[1732346778645,1.26873606,3337.8,3337.6,0.298]
[1732346779050,0.8025,3337.7,3337.6,0.298]
[1732346779366,0.47728189,3337.7,3337.6,0.298]
[1732346779530,1.26873606,3337.8,3337.7,0.298]
[1732346779531,0.65976062,3337.8,3337.7,0.298]
[1732346779854,0.24166062,3337.8,3337.7,0.298]
[1732346782274,0.24166062,3337.8,3336.8,0.298]
[1732346782439,0.2196,3337.7,3336.8,0.298]
[1732346783773,0.2196,3337.7,3336.0,0.298]
[1732346783974,0.8174,3337.5,3335.6,0.12538197]
[1732346784144,0.84738925,3337.4,3335.8,0.27635444]
[1732346784348,0.84738925,3337.4,3335.9,0.02997096]
[1732346784955,0.84738925,3337.4,3335.9,0.32797096]
[1732346785670,0.84738925,3337.4,3336.1,0.298]
[1732346785834,0.84738925,3337.4,3336.5,0.298]
[1732346786038,0.27820081,3337.3,3334.9,0.298]
[1732346786261,1.12559006,3337.2,3335.8,0.298]
[1732346786436,0.8174,3337.0,3335.8,0.298]
[1732346786785,0.8174,3336.8,3335.8,0.298]
[1732346786933,0.84738925,3336.7,3335.8,0.298]
[1732346787334,0.84738925,3336.7,3335.4,0.298]
[1732346787542,0.84738925,3336.7,3335.6,0.298]
[1732346787810,0.84738925,3336.7,3335.8,0.298]
[1732346788860,0.84738925,3336.7,3335.6,0.298]
[1732346789059,0.84738925,3336.7,3335.8,0.298]
[1732346789951,0.27827607,3336.6,3335.8,0.298]
[1732346790149,0.8174,3336.4,3334.8,0.298]
[1732346790345,0.8174,3336.2,3335.9,0.298]
[1732346790850,0.8174,3336.0,3335.9,0.298]
[1732346792460,0.8174,3336.0,3335.2,0.298]
[1732346793486,0.8174,3336.0,3335.0,0.298]
[1732346794087,0.8174,3336.0,3335.1,0.02998253]
[1732346794258,0.8174,3336.0,3335.2,0.298]
[1732346795165,0.8174,3336.0,3335.0,0.298]
[1732346795694,0.8174,3336.0,3335.2,0.298]
[1732346795903,0.8174,3336.0,3335.4,0.298]
[1732346796352,0.84738925,3335.9,3335.4,0.298]
[1732346796854,0.84738925,3335.9,3335.0,0.298]
[1732346797083,0.84738925,3335.9,3335.2,0.298]
[1732346797657,0.84738925,3335.9,3333.9,0.02998253]
[1732346797658,0.84738925,3335.9,3335.0,0.298]
[1732346798062,0.84738925,3335.9,3334.2,0.298]
[1732346798261,0.84738925,3335.9,3334.4,0.298]
[1732346798589,0.7939,3335.7,3334.4,0.298]
[1732346798796,0.82388925,3335.6,3334.4,0.298]
[1732346799164,0.82388925,3335.6,3334.6,0.298]
[1732346805210,0.82388925,3335.6,3334.6,1.04183764]
[1732346805379,0.82388925,3335.6,3334.6,0.298]
[1732346807010,0.7939,3335.6,3335.0,0.298]
[1732346807313,0.02998925,3335.5,3335.0,0.298]
[1732346807503,5.33,3336.6,3335.0,0.298]
[1732346807504,0.7689,3336.4,3335.0,0.298]
[1732346807668,1.07625009,3336.3,3335.0,0.298]
[1732346807865,0.7689,3336.1,3335.0,0.298]
[1732346808104,0.7689,3335.9,3335.1,0.298]
[1732346808310,0.7689,3335.7,3335.1,0.298]
[1732346808618,0.79888925,3335.6,3335.1,0.298]
[1732346808968,0.79888925,3335.6,3334.6,0.298]
[1732346812311,0.7689,3335.6,3334.5,0.298]
[1732346812520,0.7689,3335.6,3334.7,0.298]
[1732346812831,0.4708,3335.6,3334.9,0.298]
[1732346813393,0.4708,3335.6,3335.1,0.298]
[1732346815389,0.4708,3335.6,3334.7,0.298]
[1732346815820,0.4708,3335.6,3334.9,0.298]
[1732346816048,0.4708,3335.6,3335.0,0.55]
[1732346816328,0.02998925,3337.0,3336.4,0.298]
[1732346816536,0.27856806,3336.9,3336.4,0.298]
[1732346816698,0.30855731,3336.8,3336.4,0.298]
[1732346816897,0.27856806,3336.7,3336.4,0.298]
[1732346817232,0.30855731,3336.6,3336.5,0.298]
[1732346818313,0.30855731,3336.6,3335.5,0.298]
[1732346818512,0.27856806,3336.5,3335.7,0.298]
[1732346818728,0.02998925,3336.4,3335.7,0.298]
[1732346818952,0.27856806,3336.3,3335.7,0.298]
[1732346819254,0.2699,3337.1,3335.7,0.298]
[1732346819449,0.2699,3336.9,3335.5,0.298]
[1732346819654,0.2699,3336.7,3335.5,0.298]
[1732346819854,0.2699,3336.5,3335.7,0.298]
[1732346820156,0.2699,3336.3,3335.7,0.298]
[1732346820345,0.02998925,3336.2,3335.7,0.298]
[1732346820647,0.2699,3336.3,3335.7,0.298]
[1732346820948,0.2699,3336.3,3335.3,0.298]
[1732346821460,0.2699,3336.3,3335.5,0.298]
[1732346821959,0.2699,3336.3,3335.7,0.298]
[1732346823922,0.2699,3336.3,3336.0,0.00194237]
[1732346827039,0.2699,3336.3,3335.7,0.43455324]
[1732346827358,0.2699,3336.3,3335.9,0.298]
[1732346828262,0.2699,3336.3,3335.6,1.2819546]
[1732346828263,0.2699,3336.3,3335.7,0.298]
[1732346828424,0.2699,3336.3,3335.9,0.298]
[1732346829450,0.2699,3336.3,3336.0,0.298]
[1732346830425,0.2699,3336.3,3335.6,2.0553546]
[1732346830426,0.2699,3336.3,3335.7,0.298]
[1732346830626,0.2699,3336.3,3335.0,0.7734]
[1732346830860,0.03998925,3337.4,3335.0,0.7734]
[1732346830861,0.2699,3336.1,3335.0,0.7734]
[1732346831630,0.2699,3336.1,3335.1,0.298]
[1732346832766,0.02998925,3337.0,3335.1,0.298]
[1732346832973,0.27865608,3336.9,3335.1,0.298]
[1732346833129,0.30864533,3336.8,3335.1,0.298]
[1732346833335,0.30864533,3336.8,3335.3,0.298]
[1732346833336,0.27865608,3336.7,3335.3,0.298]
[1732346833536,0.30864533,3336.6,3335.3,0.298]
[1732346833747,0.27865608,3336.5,3335.3,0.298]
[1732346833936,0.30864533,3336.4,3335.3,0.298]
[1732346834269,0.27865608,3336.3,3335.1,0.298]
[1732346834471,0.02998925,3336.2,3335.1,0.298]
[1732346834928,0.02998925,3337.2,3335.2,0.7734]
[1732346835130,0.27870464,3337.1,3335.3,0.298]
[1732346835373,0.30869389,3337.0,3336.5,0.298]
[1732346835540,0.27870464,3336.9,3336.5,0.298]
[1732346835759,0.30869389,3336.8,3336.5,0.298]
[1732346835956,0.27870464,3336.7,3336.5,0.298]
[1732346836164,0.27870464,3336.6,3336.5,0.298]
[1732346837171,0.01,3336.5,3334.4,0.8298]
[1732346837398,0.30869389,3336.4,3334.4,0.8298]
[1732346837572,0.27870464,3336.3,3334.4,0.8298]
[1732346837775,0.30869389,3336.2,3334.4,0.8298]
[1732346837987,0.27870464,3336.1,3334.4,0.8298]
[1732346838200,0.30869389,3336.0,3334.4,0.8298]
[1732346838404,0.02998925,3336.0,3334.5,0.55]
[1732346838562,0.27881253,3335.9,3334.5,0.55]
[1732346838903,0.30880261,3335.8,3334.5,0.55]
[1732346839111,0.27881336,3335.7,3334.4,0.76080018]
[1732346839267,0.02998925,3335.8,3332.6,0.01]
[1732346839268,0.30880261,3335.6,3333.0,0.26655936]
[1732346839611,0.30880261,3335.6,3333.3,0.8298]
[1732346839612,0.27881336,3335.5,3333.3,0.8298]
[1732346839905,0.30880261,3335.4,3333.3,0.85979307]
[1732346840206,0.27881336,3335.3,3333.3,0.85979307]
[1732346840404,0.30880261,3335.2,3333.3,0.8298]
[1732346840701,0.27881336,3335.1,3333.3,0.8298]
[1732346840900,0.02998925,3335.0,3333.3,0.8298]
[1732346841103,0.27881336,3334.9,3333.3,0.8298]
[1732346841409,0.02998925,3334.8,3332.8,0.8298]
[1732346841567,0.27881336,3334.7,3332.8,0.8298]
[1732346841768,0.02998925,3334.6,3332.8,0.8298]
[1732346841970,0.2983,3334.4,3332.8,0.5315]
[1732346842193,0.02998925,3334.3,3332.9,0.298]
[1732346843190,0.2983,3334.2,3332.9,0.298]
[1732346843402,0.01,3334.9,3332.1,0.5617734]
[1732346843403,0.2983,3334.0,3332.1,0.5617734]
[1732346843615,0.02998925,3333.9,3332.3,0.298]
[1732346843908,0.02998925,3333.9,3332.3,0.32800169]
[1732346844707,0.02998925,3333.9,3332.3,0.03000169]
[1732346845201,0.02998925,3333.9,3332.5,0.298]
[1732346846276,0.02998925,3333.9,3332.7,0.298]
[1732346847411,0.02998925,3333.9,3332.6,0.55]
[1732346847412,0.2983,3334.0,3332.9,0.298]
[1732346849111,0.02998925,3334.9,3332.9,0.298]
[1732346849112,0.2983,3333.8,3332.9,0.298]
[1732346849338,0.2983,3333.6,3332.9,0.298]
[1732346849636,0.2983,3333.6,3332.7,0.298]
[1732346850831,0.2983,3333.6,3332.8,0.298]
[1732346851034,0.2983,3333.4,3332.8,0.298]
[1732346851702,0.53399892,3334.8,3332.9,0.298]
[1732346851703,0.2983,3333.2,3332.9,0.298]
[1732346851893,0.2983,3333.0,3332.9,0.298]
[1732346852433,0.2983,3333.0,3332.1,0.298]
[1732346852633,0.2983,3333.0,3331.7,0.73061199]
[1732346852634,0.32828925,3332.9,3330.8,0.03001552]
[1732346852940,0.32828925,3332.9,3330.7,0.81211779]
[1732346853439,0.32828925,3332.9,3330.8,0.298]
[1732346853800,0.32695083,3332.9,3331.2,0.298]
[1732346854325,0.32695083,3332.9,3331.4,0.298]
[1732346855238,0.32695083,3332.9,3332.4,3.0]
[1732346855518,0.32695083,3332.9,3331.6,0.298]
[1732346856021,0.32695083,3332.9,3331.5,0.55]
[1732346856022,0.01,3332.6,3331.5,0.298]
[1732346856226,0.01,3332.6,3330.4,0.298]
[1732346856227,0.32561241,3332.5,3330.4,0.298]
[1732346857111,0.32561241,3332.5,3330.0,0.32802268]
[1732346857626,0.32561241,3332.5,3330.4,0.298]
[1732346857943,0.32561241,3332.5,3330.6,0.298]
[1732346858408,0.32561241,3332.5,3330.8,0.298]
[1732346858602,0.32561241,3332.5,3330.2,0.298]
[1732346858822,0.32561241,3332.5,3330.3,0.298]
[1732346859340,0.32561241,3332.5,3331.5,3.0]
[1732346859552,0.32561241,3332.5,3330.3,0.32801992]
[1732346859848,0.32561241,3332.5,3330.4,0.55]
[1732346860151,0.32561241,3332.5,3331.5,3.0]
[1732346860648,0.32561241,3332.5,3330.2,0.03001992]
[1732346860802,0.32561241,3332.5,3331.5,3.0]
[1732346861206,0.32561241,3332.5,3330.2,0.03001991]
[1732346861207,0.2983,3331.9,3330.2,0.03001991]
[1732346861405,0.32561241,3331.8,3330.1,0.298]
[1732346861650,0.32561241,3331.8,3330.3,0.298]
[1732346862514,0.32561241,3331.8,3330.1,3.298]
[1732346862818,0.01,3332.4,3330.1,3.298]
[1732346863017,0.543,3332.4,3330.3,0.298]
[1732346863445,0.01,3332.4,3330.3,0.298]
[1732346863772,0.01,3332.6,3330.5,1.88036167]
[1732346864246,0.01,3332.6,3330.7,0.298]
[1732346865249,0.01,3332.2,3330.7,0.298]
[1732346865467,0.01,3331.9,3330.8,0.298]
[1732346865741,0.1435,3331.8,3330.8,0.27863175]
[1732346866304,0.1435,3331.8,3330.2,0.2592635]
[1732346866706,0.1435,3331.8,3330.4,0.2592635]
[1732346866905,0.1435,3331.8,3330.6,0.2592635]
[1732346867152,0.1435,3331.8,3330.8,0.2592635]
[1732346867650,0.191344,3332.1,3330.8,0.2592635]
[1732346867813,0.19134302,3332.7,3331.0,0.2592635]
[1732346868016,0.19134302,3332.7,3330.3,0.55]
[1732346868017,0.01,3332.8,3331.2,0.2592635]
[1732346868224,0.01,3333.1,3331.6,0.2592635]
[1732346868517,0.01,3333.1,3331.8,0.2592635]
[1732346868919,1.205197,3333.1,3331.8,0.2592635]
[1732346869447,1.205197,3333.1,3331.9,0.2592635]
[1732346870578,1.205197,3333.1,3332.0,0.2592635]
[1732346871547,1.205197,3333.1,3331.0,0.2592635]
[1732346871916,1.205197,3333.1,3331.2,0.2592635]
[1732346872454,1.205197,3333.1,3330.7,3.73024965]
[1732346872667,1.205197,3333.1,3328.8,0.02]
[1732346872668,0.01,3332.2,3329.7,1.57598057]
[1732346872813,0.0562,3332.1,3329.6,0.72688057]
[1732346873149,0.0562,3332.1,3329.7,0.298]
[1732346873354,0.0562,3331.9,3329.7,0.298]
[1732346873652,0.0562,3331.9,3329.9,0.298]
[1732346873815,0.01,3331.6,3329.9,0.298]
[1732346874018,0.0562,3331.5,3329.9,0.298]
[1732346874443,0.0562,3331.5,3329.7,0.298]
[1732346875222,0.0562,3331.5,3331.4,2.9997]
[1732346875517,0.0562,3331.5,3331.4,0.298]
[1732346876249,0.0562,3331.5,3330.9,0.298]
[1732346877751,0.0562,3331.5,3331.0,0.298]
[1732346878726,0.0562,3331.5,3331.1,0.298]
[1732346879860,0.0562,3331.5,3331.2,0.298]
[1732346880827,0.0562,3331.5,3331.3,0.298]
[1732346881840,0.0562,3331.5,3330.3,0.298]
[1732346883649,0.0562,3331.5,3330.5,0.308]
[1732346883862,0.0562,3332.8,3332.3,0.298]
[1732346884070,0.0562,3332.6,3332.0,0.298]
[1732346884266,0.27871429,3332.5,3332.2,0.298]
[1732346884432,0.33491429,3332.4,3332.2,0.298]
[1732346884765,0.0562,3332.8,3332.2,0.298]
[1732346885061,0.0562,3332.6,3332.2,0.298]
[1732346885263,0.27874414,3332.5,3332.1,3.298]
[1732346885468,0.0562,3332.4,3332.1,3.298]
[1732346885693,0.0562,3332.3,3332.1,0.298]
[1732346885894,0.0562,3332.3,3332.1,3.298]
[1732346886082,0.0562,3332.3,3332.1,0.298]
[1732346886263,0.0562,3332.3,3332.1,3.298]
[1732346886667,0.0562,3332.3,3332.1,0.298]
[1732346886866,0.0562,3332.3,3332.1,3.298]
[1732346887091,0.0562,3332.3,3331.0,0.74909358]
[1732346887297,0.0562,3332.3,3332.1,3.298]
[1732346887471,0.0562,3332.3,3332.1,0.298]
[1732346888205,0.0562,3332.3,3331.3,0.298]
[1732346888703,0.0562,3332.3,3331.3,0.308]
[1732346889054,0.18149484,3333.0,3331.3,0.308]
[1732346889055,0.0562,3332.9,3331.5,0.298]
[1732346889255,0.0562,3332.9,3332.7,0.875]